Cogmind - Beta 11 @@@ ROGUE MODE // 2022.04.08 @ 18:28:38 Player: T1-4MT Result: Destroyed by D-53 Grenadier with Mini Grenade Launcher Performance ------------- Evolutions (0) 0 Regions Visited (2) 400 Robots Destroyed (12) 60 Value Destroyed (325) 325 Prototype IDs (0) 0 Alien Tech Used (0) 0 Bonus (-9) -9 TOTAL SCORE: 776 Bonus ------- Friendly Fire -9 Cogmind --------- Core Integrity 0/250 Matter 300/300 Energy 93/100 System Corruption 1% Temperature Cool (0) Movement Core (50) Location -10/Mines Parts ------- > --- POWER (1) -------- (None) > --- PROPULSION (2) --- (None) > --- UTILITY (2) ------ (None) > --- WEAPON (2) ------- (None) > --- INVENTORY (5) ---- Ion Engine Light Treads Light Treads Compact Wheel High-capacity Storage Unit Peak State ------------ > --- POWER ------------ Ion Engine > --- PROPULSION ------- Light Treads Light Treads > --- UTILITY ---------- Small Storage Unit Structural Scanner > --- WEAPON ----------- Medium Laser Medium Laser > --- INVENTORY -------- Light Ion Engine Light Treads Light Treads Light Treads Light Treads Compact Wheel Compact Wheel EM Pulse Gun [Rating: 7] Favorites ----------- Power Light Ion Engine Engine Light Ion Engine Propulsion Light Treads Treads Light Treads Utility Small Storage Unit Device Structural Scanner Storage Small Storage Unit Weapon Medium Laser Energy Gun Medium Laser Ballistic Gun Assault Rifle Build | -11 -10 -10 ------- Run | Scr Mat Min Slots Evolved . | . . . Power . | . . . Propulsion . | . . . Utility . | . . . Weapon . | . . . Parts Attached 10 | 6 3 1 Power 2 | 1 1 . Engine 2 | 1 1 . Core . | . . . Reactor . | . . . Propulsion 3 | 2 . 1 Treads 3 | 2 . 1 Leg . | . . . Wheel . | . . . Hover . | . . . Flight . | . . . Utility 2 | 1 1 . Device 1 | . 1 . Storage 1 | 1 . . Processor . | . . . Hackware . | . . . Protection . | . . . Artifact . | . . . Weapon 3 | 2 1 . Energy Gun 2 | 2 . . Energy Cannon . | . . . Ballistic Gun 1 | . 1 . Ballistic Cannon . | . . . Launcher . | . . . Special Weapon . | . . . Impact Weapon . | . . . Slashing Weapon . | . . . Piercing Weapon . | . . . Special Melee Weapon . | . . . Unidentified Prototypes . | . . . Parts Lost 8 | . 1 7 Power 2 | . 1 1 Propulsion 3 | . . 3 Utility 1 | . . 1 Weapon 2 | . . 2 Highest Loss Streak 6 | . 1 6 To Critical Strikes . | . . . Average Slot Usage (%) 96 | . 95 99 Engine 12 | . 11 14 Treads 28 | . 28 28 Device 12 | . 12 14 Storage 14 | . 14 14 Energy Gun 16 | . 18 13 Ballistic Gun 11 | . 9 13 Naked Turns . | . . . Heaviest Build 15 | 14 15 13 Greatest Support 40 | 40 40 40 Greatest Overweight (x) . | . . . Average Overweight (x) . | . . . Largest Inventory Capacity 8 | 8 8 8 Average Capacity 7 | 6 8 7 Most Carried 8 | 4 8 8 Average Carried 7 | 2 7 7 Final Capacity 8 | 8 8 5 Final Carried 8 | 4 8 5 Class Distribution -------------------- 100% | Mutant Dominant Class ---------------- Mutant | -10/Materials Mutant | -10/Mines Resources | -11 -10 -10 ----------- Run | Scr Mat Min Matter Collected 396 | 241 99 56 Remotely . | . . . Salvage Created 368 | . 284 84 Parts 15 | . 12 3 Haulers Intercepted . | . . . Recyclers Shooed 1 | . 1 . Parts Field Recycled . | . . . Retrieved Matter . | . . . Parts Self-Destructed . | . . . Prevented . | . . . Kills | -11 -10 -10 ------- Run | Scr Mat Min Combat Hostiles Destroyed 13 | . 10 3 Guns 12 | . 9 3 Classes Destroyed 3 | . 2 1 Swarmer 4 | . 4 . Grunt 8 | . 6 2 Assembled 1 | . . 1 Best Kill Streak 4 | . 4 1 Combat Bots Only 4 | . 4 1 Max Kills in Single Turn 1 | . 1 1 Gunslinging . | . . . Exploded . | . . . Melee . | . . . Uniques/NPCs Destroyed . | . . . Combat | -11 -10 -10 -------- Run | Scr Mat Min Damage Taken 1166 | . 541 625 Core 264 | . 63 201 Absorbed by Shields . | . . . Core Remaining (%) 100 | 100 . . Volleys Fired 45 | . 32 13 Largest 2 | . 2 2 Hottest 100 | . 100 70 Shots Fired 90 | . 64 26 Gun 90 | . 64 26 Cannon . | . . . Launcher . | . . . Special . | . . . Kinetic 39 | . 26 13 Thermal 51 | . 38 13 Explosive . | . . . Electromagnetic . | . . . Robot Hit Streak 13 | . 7 13 Robot Miss Streak 5 | . 5 2 Penetration Max . | . . . Secondary Targets . | . . . Shots Hit Robots 59 | . 41 18 Core Hits 22 | . 16 6 Critical Kills . | . . . Critical Parts Destroyed . | . . . Critical Strikes 4 | . 3 1 Burn 4 | . 3 1 Melee Attacks . | . . . Impact . | . . . Slashing . | . . . Piercing . | . . . Sneak Attacks . | . . . Combat Hostiles . | . . . Follow-up Attacks . | . . . Damage Inflicted 799 | . 558 241 Guns 757 | . 518 239 Cannons . | . . . Explosions . | . . . Melee . | . . . Ramming 42 | . 40 2 Kinetic 329 | . 215 114 Thermal 428 | . 303 125 Explosive . | . . . Electromagnetic . | . . . Impact . | . . . Slashing . | . . . Piercing . | . . . Highest Corruption 1 | . . 1 Average Corruption 1 | . . 1 Corruption Purged . | . . . Corruption Blocked . | . . . Overload Shots . | . . . Overflow Damage . | . . . Projectiles . | . . . Explosions . | . . . Melee . | . . . Knockbacks 1 | . . 1 Impact 1 | . . 1 Kinetic . | . . . Secondary . | . . . Self-Inflicted Damage . | . . . Shots . | . . . Rammed 8 | . 7 1 Targets Rammed 8 | . 7 1 Kicked . | . . . Crushed . | . . . Highest Temperature 285 | . 285 75 Average Temperature 73 | . 90 27 Received Heat Transfer 225 | . 171 54 Siege Activations . | . . . Robots Corrupted . | . . . Combat Hostiles . | . . . Parts Fried . | . . . Impact Corruptions . | . . . Robots Melted 1 | . 1 . Combat Hostiles 1 | . 1 . Parts Melted 5 | . 5 . Heat Transferred 1554 | . 1110 444 Parts Sabotaged . | . . . Parts Stolen . | . . . Parts Stripped . | . . . Power Chain Reactions . | . . . Missiles Intercepted . | . . . Alert | -11 -10 -10 ------- Run | Scr Mat Min Peak Influence 203 | . 203 78 Initial 33 | . . 33 Average 71 | . 99 52 Maximum Alert Level 1 | . 1 . Low Security (%) 97 | 100 96 100 Level 1 2 | . 3 . Level 2 . | . . . Level 3 . | . . . Level 4 . | . . . Level 5 . | . . . High Security . | . . . Max Security . | . . . Squads Dispatched 3 | . 3 . Investigation 2 | . 2 . Extermination . | . . . Reinforcement 1 | . 1 . Assault . | . . . Garrison . | . . . Intercept . | . . . Searches Triggered . | . . . Construction Impeded . | . . . Haulers Reinforced . | . . . Active Scanning Responses . | . . . Cargo Convoy Interrupts . | . . . Stealth | -11 -10 -10 --------- Run | Scr Mat Min Distress Signals 1 | . 1 . Communications Jammed . | . . . Distress Signals . | . . . Times Spotted 27 | . 17 10 Peak Tracking Total 5 | . 5 2 Tactical Retreats 3 | . 1 2 Traps | -11 -10 -10 ------- Run | Scr Mat Min Traps Triggered 2 | . 2 . Indirectly . | . . . Trap Hack Attempts . | . . . Triggered . | . . . Disarmed . | . . . Reprogrammed . | . . . Reused . | . . . Traps Extracted . | . . . Installed . | . . . Triggered . | . . . Machines | -11 -10 -10 ---------- Run | Scr Mat Min Machines Disabled . | . . . Max in Single Turn . | . . . Machines Sabotaged . | . . . Garrisons Compromised . | . . . Overloaded Fab Kills . | . . . Hacking | -11 -10 -10 --------- Run | Scr Mat Min Machines Accessed 4 | . 4 . Terminals 4 | . 4 . Fabricators . | . . . Repair Stations . | . . . Recycling Units . | . . . Scanalyzers . | . . . Garrison Access . | . . . Total Hacks 13 | . 13 . Successful 7 | . 7 . Failed 5 | . 5 . Catastrophic 2 | . 2 . Database Lockouts 1 | . 1 . Manual 9 | . 9 . Terminals 13 | . 13 . Fabricators . | . . . Repair Stations . | . . . Recycling Units . | . . . Scanalyzers . | . . . Garrison Access . | . . . Terminal Hacks 4 | . 4 . Part Schematic 1 | . 1 . Locate Traps 1 | . 1 . Recall Investigation 1 | . 1 . Zone Layout 1 | . 1 . Fabricator Hacks . | . . . Repair Station Hacks . | . . . Recycling Unit Hacks . | . . . Scanalyzer . | . . . Garrison Access Hacks . | . . . Unauthorized Hacks 3 | . 3 . Terminals 3 | . 3 . Botnet 3 | . 3 . Fabricators . | . . . Repair Stations . | . . . Recycling Units . | . . . Scanalyzers . | . . . Garrison Access . | . . . Data Cores Recovered . | . . . Used . | . . . Hacking Detections 4 | . 4 . Full Trace Events 1 | . 1 . Feedback Events . | . . . Feedback Blocked . | . . . Robot Schematics Acquired . | . . . Robots Built . | . . . Authchips . | . . . Time . | . . . Total Robot Build Rating . | . . . Part Schematics Acquired 1 | . 1 . Parts Built . | . . . Authchips . | . . . Time . | . . . Total Part Build Rating . | . . . Parts Repaired . | . . . Time . | . . . Parts Recycled . | . . . Recycled Matter . | . . . Retrieved Matter . | . . . Retrieved Components . | . . . Parts Scanalyzed . | . . . Part Schematics Acquired . | . . . Parts Damaged . | . . . Bothacking | -11 -10 -10 ------------ Run | Scr Mat Min Used RIF Installer . | . . . Robots Hacked . | . . . Non-combat . | . . . Combat . | . . . Robot Hacks Applied . | . . . Relay Couplers Released . | . . . Fabnet Peak Effective % . | . . . Robots Rewired . | . . . Allies Hacked . | . . . Hacks Repelled . | . . . Allies | -11 -10 -10 -------- Run | Scr Mat Min Total Allies . | . . . Largest Group . | . . . Highest-Rated Group . | . . . Highest-Rated Ally . | . . . Total Orders . | . . . Ally Attacks . | . . . Total Damage . | . . . Kills . | . . . Allies Corrupted . | . . . Allies Melted . | . . . Intel | -11 -10 -10 ------- Run | Scr Mat Min Robot Analysis Total . | . . . Derelict Logs Recovered 1 | . . 1 Drone Launches . | . . . Drone Recoveries . | . . . Exploration | -11 -10 -10 ------------- Run | Scr Mat Min Turns Passed 944 | 85 490 369 Spaces Moved 472 | 49 226 197 Core 6 | 5 . 1 Treads 466 | 44 226 196 Legs . | . . . Wheels . | . . . Hover . | . . . Flight . | . . . Fastest Speed 50 | 50 160 50 Average Speed 158 | 148 160 159 Slowest Speed 160 | 160 160 160 Overloaded Moves . | . . . Propulsion Burnouts . | . . . Robots Hopped . | . . . Cave-ins Triggered 1 | . . 1 Exploration Rate (%) 32 | 4 49 44 Regions Visited 2 Branch Regions 1 Pre-discovered Areas 1 | . . 1 Known Exits Taken . | . . . Unknown Exits Taken 2 | 1 1 . Scrap Searched . | . . . Spaces Dug . | . . . Terrain Destroyed . | . . . Melee . | . . . Projectile . | . . . AOE . | . . . Terrain Rammed . | . . . Walls Destroyed . | . . . Machines Disabled . | . . . Actions | -11 -10 -10 --------- Run | Scr Mat Min Total 570 | 58 286 226 Wait 21 | . 11 10 Move 470 | 48 225 197 Hop . | . . . Pick Up 12 | 4 6 2 Fast Attach 8 | 6 2 . Attach 2 | . 1 1 Detach . | . . . Swap . | . . . Drop 4 | . 2 2 Fire 45 | . 32 13 Melee . | . . . Ram . | . . . Kick . | . . . Crush 8 | . 7 1 Escape Stasis . | . . . Rewire . | . . . Trap . | . . . Miscellaneous . | . . . Route ------- -11/Scrapyard -10/Materials (discovered 2 exits: [*Mat] / [*Min]) -10/Mines (discovered 1 exit: [*Mat]) History --------- Turn | Location | Event 12 | -11/Scrapyard | Discovered new exit (range 13) 86 | -11/Scrapyard | Entered Materials 312 | -10/Materials | Build established: Mutant 386 | -10/Materials | Discovered new exit (range 11) 519 | -10/Materials | Central database locked down 542 | -10/Materials | Discovered new exit (range 12) 576 | -10/Materials | Entered Mines 577 | -10/Mines | Assembled infested the area 582 | -10/Mines | Assisted by a Guerilla fighting off Assembled 640 | -10/Mines | Received a Rocket Launcher from a helpful Derelict 865 | -10/Mines | Discovered new exit (range 8) 943 | -10/Mines | Crushed by falling debris 943 | -10/Mines | Core integrity fell below 50% 945 | -10/Mines | Core integrity fell below 20% 945 | -10/Mines | Destroyed by D-53 Grenadier with Mini Grenade Launcher Last Messages --------------- 00744_ G-34 Mercenary destroyed. 00749_ Acquired 15 matter. 00865_ EXIT=FOUND 00902_ Lgt. Treads destroyed. 00904_ G-34 Mercenary suffers critical hit (Burn). 00904_ G-34 Mercenary destroyed. 00907_ Acquired 17 matter. 00910_ Acquired Ion Engine. 00937_ Med. Laser destroyed. 00939_ Assault Rifle destroyed. 00941_ Lgt. Ion Engine destroyed. 00943_ The unstable cave ceiling collapses. 00943_ Crushed by falling debris. 00943_ Lgt. Treads destroyed. 00943_ System corrupted by crushing effect (+1). 00943_ Lgt. Treads destroyed. 00944_ Dropped Sml. Storage Unit. 00944_ D-53 Grenadier destroyed. 00945_ The unstable cave ceiling collapses. 00945_ Structural Scanner destroyed. Map ----- +----------------------------------------------------+ | ??????????????????????????????????## ### | | ??????????????????????????????????## ####### #### | | ??????????????????????????????????## #####? #### | | ?????????????????????????????????? ??????????## | | ????????????????????????????????? ????????????? | | ???????????????????????????????? % ????????????? | | ??????????????????????????????? ?????????????? | | ??????????????????????????????? ?????????????? | | ???????????????????????????????? ??????????????? | | ?????????????????????????????????????????????????? | | ????????????????????????????? ##?????????????????? | | ????????????????????????????? ##?????????????????? | | ???????????????????????????? # ?????????????????? | | ???????????????????????????? ##?????????????????? | | ?????????????????????????### ##?????????????????? | | ?????????????????????????###% ##?????????????????? | | ?????????????????????????## u##?????????????????? | | ????????????????????????? ####????????????????? | | ?????????????????????????? ###????????????????? | | ???????????????????????## ##????????????????? | | ?????????????????????##### ##?????????????????? | | ?????????????????????#### # k ###????????????????? | | ?????????????????????## ####???????????????? | | ??????????????######### d ####??????????????? | | ???????????## ######### ###??????????????? | | ???????????## @ [ ###?????????????? | | ???????????###??####### ] ###??????????#### | | ????????????????####### # #########???#### | | ?????????????????????## #########???## | | ?????????????????????### ##???## # | | ?????????????????????#### ###### ##???## # | | ??????????????????????#### ####### ####?## # | | ???????????????????????#### ########### ####### # | | ???????????????????????############### % ##### # | | ???????????????????????### #### # | | ???????????????????????## ### # | | ???????????????????????## """ #### ## # | | ???????????????????????## """ ##### #### ##### | | ???????????????????????## """ ################### | | ???????????????????????## ###############??# | | ???????????????????????### ######???????????# | | ???????????????????????#### #####???????????# | | ????????????????????????### ###??????????# | | ??????????????????????? ##??????????# | | ?????????????????#T ##### ##??????????# | | ?????????????????##